fUST/lending_fUST_20250908
["ID","MTS","AMOUNT","RATE_DAILY","PERIOD"]
[384306132,1757328650633,-480.0,0.00013698,2]
[384306134,1757328650645,-480.0,0.00013698,2]
[384306136,1757328650655,-480.0,0.00013698,2]
[384306137,1757328650664,-480.0,0.00013698,2]
[384306139,1757328650674,-482.24117586,0.00013698,2]
[384306141,1757328650684,-480.0,0.00013698,2]
[384306143,1757328650693,-480.0,0.00013698,2]
[384306145,1757328650703,-480.96590175,0.00013698,2]
[384306146,1757328650712,-480.0,0.00013698,2]
[384306147,1757328650722,-480.0,0.00013698,2]
[384306148,1757328650731,-480.0,0.00013698,2]
[384306149,1757328650741,-480.0,0.00013698,2]
[384306150,1757328650750,-480.0,0.00013698,2]
[384306151,1757328650760,-480.0,0.00013698,2]
[384306153,1757328650769,-480.0,0.00013698,2]
[384306154,1757328650779,-480.0,0.00013698,2]
[384306155,1757328650788,-480.0,0.00013698,2]
[384306156,1757328650798,-480.0,0.00013698,2]
[384306157,1757328650807,-500.0,0.00013698,2]
[384306158,1757328650817,-500.0,0.00013698,2]
[384306159,1757328650826,-500.0,0.00013698,2]
[384306160,1757328650838,-500.0,0.00013698,2]
[384306161,1757328650848,-504.21865693,0.00013698,2]
[384306162,1757328650858,-295.2481634,0.00013698,2]
[384306163,1757328650867,-481.08845104,0.00013698,2]
[384306164,1757328650878,-480.0,0.00013698,2]
[384306165,1757328650887,-480.0,0.00013698,2]
[384306166,1757328650897,-482.94152984,0.00013698,2]
[384306167,1757328650907,-480.0,0.00013698,2]
[384306168,1757328650917,-484.36458362,0.00013698,2]
[384306169,1757328650926,-372.43277086,0.00013698,2]
[384306170,1757328650936,-483.78559756,0.00013698,2]
[384306171,1757328650946,-481.68859633,0.00013698,2]
[384306172,1757328650956,-480.0,0.00013698,2]
[384306173,1757328650966,-480.0,0.00013698,2]
[384306174,1757328650978,-476.35181474,0.00013698,2]
[384306175,1757328650987,-480.0,0.00013698,2]
[384306176,1757328650997,-480.0,0.00013698,2]
[384306177,1757328651006,-480.0,0.00013698,2]
[384306178,1757328651016,-481.93523303,0.00013698,2]
[384306179,1757328651025,-480.0,0.00013698,2]
[384306180,1757328651034,-480.0,0.00013698,2]
[384306181,1757328651045,-481.40461927,0.00013698,2]
[384306182,1757328651055,-482.30647875,0.00013698,2]
[384306183,1757328651066,-480.0,0.00013698,2]
[384306184,1757328651076,-480.0,0.00013698,2]
[384306185,1757328651087,-480.0,0.00013698,2]
[384306186,1757328651096,-319.62515827,0.00013698,2]
[384306187,1757328651106,-480.0,0.00013698,2]
[384306188,1757328651116,-480.86930627,0.00013698,2]
[384306189,1757328651125,-480.0,0.00013698,2]
[384306190,1757328651135,-480.0,0.00013698,2]
[384306191,1757328651144,-482.42793387,0.00013698,2]
[384306192,1757328651154,-480.0,0.00013698,2]
[384306193,1757328651164,-480.0,0.00013698,2]
[384306194,1757328651173,-480.0,0.00013698,2]
[384306195,1757328651183,-480.0,0.00013698,2]
[384306196,1757328651194,-480.0,0.00013698,2]
[384306197,1757328651205,-480.0,0.00013698,2]
[384306198,1757328651214,-480.0,0.00013698,2]
[384306199,1757328651223,-480.0,0.00013698,2]
[384306200,1757328651233,-480.0,0.00013698,2]
[384306201,1757328651242,-480.0,0.00013698,2]
[384306202,1757328651251,-680.71,0.00013698,2]
[384306203,1757328651261,-480.0,0.00013698,2]
[384306204,1757328651375,-480.0,0.00013698,2]
[384306205,1757328651385,-480.0,0.00013698,2]
[384306206,1757328651395,-480.0,0.00013698,2]
[384306207,1757328651405,-480.0,0.00013698,2]
[384306208,1757328651414,-480.0,0.00013698,2]
[384306209,1757328651423,-482.80682231,0.00013698,2]
[384306210,1757328651433,-480.0,0.00013698,2]
[384306211,1757328651442,-548.0,0.00013698,2]
[384306212,1757328651452,-482.6948753,0.00013698,2]
[384306213,1757328651462,-480.0,0.00013698,2]
[384306214,1757328651470,-415.23987782,0.00013698,2]
[384306215,1757328651479,-480.0,0.00013698,2]
[384306216,1757328651488,-480.0,0.00013698,2]
[384306217,1757328651498,-480.0,0.00013698,2]
[384306218,1757328651507,-480.0,0.00013698,2]
[384306219,1757328651516,-480.0,0.00013698,2]
[384306220,1757328651525,-480.0,0.00013698,2]
[384306221,1757328651535,-480.0,0.00013698,2]
[384306222,1757328651545,-480.0,0.00013698,2]
[384306223,1757328651555,-483.64058546,0.00013698,2]
[384306224,1757328651569,-480.0,0.00013698,2]
[384306225,1757328651579,-480.0,0.00013698,2]
[384306226,1757328651588,-480.0,0.00013698,2]
[384306227,1757328651598,-480.0,0.00013698,2]
[384306228,1757328651610,-480.0,0.00013698,2]
[384306229,1757328651619,-480.0,0.00013698,2]
[384306230,1757328651629,-480.0,0.00013698,2]
[384306231,1757328651639,-480.0,0.00013698,2]
[384306232,1757328651649,-480.0,0.00013698,2]
[384306233,1757328651659,-480.0,0.00013698,2]
[384306234,1757328651667,-480.0,0.00013698,2]
[384306235,1757328651677,-480.0,0.00013698,2]
[384306236,1757328651686,-480.0,0.00013698,2]
[384306237,1757328651695,-480.0,0.00013698,2]
[384306238,1757328651704,-484.5468891,0.00013698,2]
[384306239,1757328651712,-480.0,0.00013698,2]
[384306240,1757328651722,-480.0,0.00013698,2]
[384306241,1757328651731,-485.19074899,0.00013698,2]
[384306242,1757328651740,-552.08,0.00013698,2]
[384306243,1757328651750,-480.0,0.00013698,2]
[384306244,1757328651759,-480.0,0.00013698,2]
[384306245,1757328651768,-481.83913818,0.00013698,2]
[384306246,1757328651778,-483.45054322,0.00013698,2]
[384306247,1757328651787,-483.44132887,0.00013698,2]
[384306248,1757328651797,-480.0,0.00013698,2]
[384306249,1757328651807,-480.0,0.00013698,2]
[384306250,1757328651816,-480.0,0.00013698,2]
[384306251,1757328651826,-480.0,0.00013698,2]
[384306252,1757328651836,-376.82846288,0.00013698,2]
[384306253,1757328651845,-480.0,0.00013698,2]
[384306254,1757328651855,-480.0,0.00013698,2]
[384306255,1757328651864,-480.0,0.00013698,2]
[384306256,1757328651873,-480.0,0.00013698,2]
[384306257,1757328651883,-480.0,0.00013698,2]
[384306258,1757328651892,-481.63398376,0.00013698,2]
[384306259,1757328651901,-309.16070114,0.00013698,2]
[384306264,1757328652058,-170.83929886,0.00013698,2]
[384306265,1757328652067,-313.80811629,0.00013698,2]
[384306266,1757328652444,300.0,0.0001304,2]
[384306276,1757328701236,3673.0454213,0.00013071,2]
[384306277,1757328701259,10000.01,0.00013071,2]
[384306278,1757328701282,10000.01,0.00013071,2]
[384306279,1757328701305,10000.01,0.00013071,2]
[384306280,1757328701329,10000.01,0.00013071,2]
[384306281,1757328701352,10000.01,0.00013071,2]
[384306282,1757328701374,10000.01,0.00013071,2]
[384306283,1757328701398,10000.01,0.00013071,2]
[384306284,1757328701421,10000.01,0.00013071,2]
[384306285,1757328701444,10000.01,0.00013071,2]
[384306286,1757328701471,276326.8645787,0.00013071,2]
[384306287,1757328701501,500.0,0.0001317,2]
[384306288,1757328701533,500.0,0.0001317,2]
[384306289,1757328701565,500.0,0.0001317,2]
[384306290,1757328701608,500.0,0.0001317,2]
[384306291,1757328701639,500.0,0.0001317,2]
[384306292,1757328701673,500.0,0.0001317,2]
[384306293,1757328701705,500.0,0.0001317,2]
[384306294,1757328701736,500.0,0.0001317,2]
[384306295,1757328701766,500.0,0.0001317,2]
[384306296,1757328701807,500.0,0.0001317,2]
[384306297,1757328701837,500.0,0.0001317,2]
[384306298,1757328701867,500.0,0.0001317,2]
[384306299,1757328701905,500.0,0.0001317,2]
[384306300,1757328701935,500.0,0.0001317,2]
[384306301,1757328702032,576.50458071,0.0001317,2]
[384306302,1757328706630,500.0,0.0001317,2]
[384306303,1757328711114,244.31056084,0.0001317,2]
[384306304,1757328711155,276.63762595,0.0001317,2]
[384306305,1757328711457,500.0,0.0001317,2]
[384306306,1757328711510,500.0,0.0001317,2]
[384306307,1757328711571,500.0,0.0001317,2]
[384306308,1757328711628,500.0,0.0001317,2]
[384306309,1757328711677,370.11594229,0.0001317,2]
[384306314,1757328848290,-200.92540105,0.00013291,2]
[384306315,1757328853028,-63.07459895,0.00013291,2]
[384306322,1757329149753,2179.05502768,0.00028766,120]
[384306323,1757329223246,-398.0884634,0.00013326,2]
[384306324,1757329226887,-202.39889938,0.00013326,2]
[384306325,1757329229055,-422.92230723,0.00013326,2]
[384306326,1757329231498,-255.9724317,0.00013326,2]
[384306327,1757329233123,-198.00801229,0.00013326,2]
[384306328,1757329237119,-360.54778552,0.00013326,2]
[384306329,1757329241191,-290.13616409,0.00013326,2]
[384306330,1757329245361,-178.41113663,0.00013326,2]
[384306331,1757329248364,-9.98069208,0.00013326,2]
[384306332,1757329266171,-205.90349148,0.00013326,2]
[384306362,1757329832392,-57.88142708,0.00013326,2]
[384306364,1757329832403,-234.8195442,0.00013544,2]
[384306366,1757329832412,-500.0,0.00013544,2]
[384306368,1757329832421,-500.0,0.00013544,2]
[384306370,1757329832433,-500.0,0.00013544,2]
[384306372,1757329832442,-500.0,0.00013544,2]
[384306374,1757329832452,-500.0,0.00013544,2]
[384306376,1757329832461,-219.87950476,0.00013544,2]
[384306378,1757329832473,-500.0,0.00013544,2]
[384306380,1757329832483,-451.09946939,0.00013544,2]
[384306382,1757329832492,-500.0,0.00013544,2]
[384306384,1757329832502,-264.71095394,0.00013544,2]
[384306387,1757329832511,-12190.6436612,0.00013545,2]
[384306389,1757329832523,-378.58896965,0.00013545,2]
[384306444,1757329838724,-152.0,0.00013447,2]
[384306566,1757329841346,-34.97233617,0.00013447,2]
[384306586,1757329843516,-186.97233615,0.00013497,2]
[384306588,1757329843527,-133601.32251141,0.00013545,2]
[384306592,1757329846599,-8222.2563,0.00013545,2]
[384306594,1757329854428,-163.09637241,0.0001341,2]
[384306595,1757329856934,-13.91572903,0.0001341,2]
[384306596,1757329919687,-156.68162977,0.00013446,2]
[384306597,1757329922652,-20.33047167,0.00013446,2]
[384306903,1757330142934,-393.72803304,0.00013448,2]
[384306904,1757330149131,-233.49066903,0.00013448,2]
[384306905,1757330151208,-346.07787821,0.00013448,2]
[384306906,1757330156417,-334.11349151,0.00013448,2]
[384306907,1757330158809,-179.93467193,0.00013448,2]
[384306908,1757330165328,-300.0,0.00013447,2]
[384306909,1757330165350,-55.85341321,0.00013448,2]
[384306932,1757330167248,-162.89081129,0.00013444,2]
[384306975,1757330169890,-40.54510261,0.00013444,2]
[384306976,1757330169913,-374.46453895,0.00013448,2]
[384306977,1757330172796,-218.50933097,0.00013448,2]
[384306978,1757330175250,-237.44463646,0.00013448,2]
[384306979,1757330178482,-527.56906512,0.00013448,2]
[384306980,1757330183194,-344.18958529,0.00013448,2]
[384306981,1757330184842,-286.55218751,0.00013448,2]
[384306982,1757330189134,-266.27671976,0.00013448,2]
[384306983,1757330190828,-164.05823101,0.00013448,2]
[384306984,1757330193138,-164.37368094,0.00013447,2]
[384306985,1757330193162,-141.02318966,0.00013448,2]
[384306986,1757330197256,-161.23327438,0.00013447,2]
[384306987,1757330197279,-463.4699604,0.00013448,2]
[384306988,1757330201452,-300.0,0.00013448,2]
[384306989,1757330205406,-455.48778367,0.00013448,2]
[384306990,1757330209464,-436.72255579,0.00013448,2]
[384306991,1757330212944,-151.0,0.00013448,2]
[384306992,1757330215312,-211.21256575,0.00013448,2]
[384307164,1757330221165,-368.64906917,0.00013448,2]
[384307189,1757330223348,-300.0,0.00013447,2]
[384307191,1757330223373,-82.78565125,0.00013448,2]
[384307257,1757330225005,-271.97452811,0.00013448,2]
[384307386,1757330229828,-742.60998103,0.00013448,2]
[384307387,1757330231505,-173.04023055,0.00013447,2]
[384307388,1757330234278,-465.16112464,0.00013447,2]
[384307389,1757330237141,-398.24056082,0.00013447,2]
[384307390,1757330239021,-163.55808399,0.00013447,2]
[384307391,1757330239044,-2.03755939,0.00013448,2]
[384307392,1757330241249,-220.11109706,0.00013448,2]
[384307393,1757330246473,-449.38312159,0.00013448,2]
[384307394,1757330248860,-312.03418675,0.00013448,2]
[384307395,1757330252358,-151.0,0.00013448,2]
[384307396,1757330257266,220.11109706,0.00013313,2]
[384307397,1757330257600,-163.27744421,0.00013448,2]
[384307398,1757330261947,-162.89081125,0.00013448,2]
[384307399,1757330264709,-198.01979128,0.00013448,2]
[384307400,1757330266468,-169.97848324,0.00013448,2]
[384307401,1757330269978,-211.21256575,0.00013447,2]
[384307402,1757330272787,-153.72252233,0.00013447,2]
[384307403,1757330274537,-93.30964357,0.00013447,2]
[384307404,1757330274560,-168.7488363,0.00013448,2]
[384307405,1757330278063,-163.38137644,0.00013448,2]
[384307406,1757330281545,-226.81347349,0.00013448,2]
[384307407,1757330285640,-184.11073457,0.00013448,2]
[384307408,1757330288546,-208.02547189,0.00013448,2]
[384307409,1757330290355,-238.96833848,0.00013448,2]
[384307410,1757330294643,-367.89372861,0.00013448,2]
[384307411,1757330297490,-237.61408416,0.00013448,2]
[384307412,1757330302499,-469.74589806,0.00013448,2]
[384307413,1757330306083,-500.0,0.00013448,2]
[384307414,1757330310540,-165.97846305,0.00013448,2]
[384307415,1757330313338,-155.90967631,0.00013448,2]
[384307416,1757330318212,-157.14661163,0.00013448,2]
[384307417,1757330319730,-440.2594913,0.00013448,2]
[384307418,1757330344135,-176.63950592,0.00013448,2]
[384307419,1757330353333,-163.70506268,0.00013448,2]
[384307420,1757330357866,-196.63346584,0.00013448,2]
[384307421,1757330360134,-334.20920897,0.00013448,2]
[384307422,1757330362434,-287.06555677,0.00013448,2]
[384307423,1757330369736,-221.14646626,0.00013448,2]
[384307434,1757330374092,-187.73810403,0.00013448,2]
[384307442,1757330376273,-205.05568667,0.00013448,2]
[384307444,1757330382664,-176.47737352,0.00013448,2]
[384307445,1757330384294,-152.0,0.00013448,2]
[384307446,1757330387067,-176.11760513,0.00013448,2]
[384307447,1757330389920,-534.0,0.00013448,2]
[384307448,1757330391579,-282.89139009,0.00013448,2]
[384307449,1757330398927,-289.46609302,0.00013448,2]
[384307450,1757330401551,-275.49806485,0.00013448,2]
[384307451,1757330404855,-294.57134944,0.00013447,2]
[384307452,1757330406491,-5.42865056,0.00013447,2]
[384307453,1757330406515,-258.12254443,0.00013448,2]
[384307454,1757330410112,-231.53836618,0.00013447,2]
[384307455,1757330412842,-171.63745987,0.00013447,2]
[384307456,1757330414695,-169.35364062,0.00013447,2]
[384307457,1757330416363,-233.61302026,0.00013447,2]
[384307458,1757330419170,-269.09059717,0.00013447,2]
[384307459,1757330422148,-124.7669159,0.00013447,2]
[384307460,1757330422173,-148.42092561,0.00013448,2]
[384307461,1757330425314,-326.70069019,0.00013448,2]
[384307462,1757330428142,-177.47639593,0.00013448,2]
[384307463,1757330431844,-260.54907229,0.00013448,2]
[384307464,1757330434340,-186.6659635,0.00013448,2]
[384307465,1757330438595,-268.35029559,0.00013448,2]
[384307466,1757330440437,-214.01383213,0.00013448,2]
[384307467,1757330442105,-371.53781693,0.00013448,2]
[384307468,1757330444436,-152.33357816,0.00013448,2]
[384307469,1757330446693,-164.11778576,0.00013448,2]
[384307470,1757330449431,-300.0,0.00013448,2]
[384307471,1757330454626,-195.12853109,0.00013448,2]
[384307472,1757330456460,-508.02080877,0.00013448,2]
[384307473,1757330460868,-399.67114177,0.00013448,2]
[384307474,1757330463144,-163.70506268,0.00013448,2]
[384307475,1757330464836,-218.78111207,0.00013447,2]
[384307476,1757330464859,-152.7101909,0.00013448,2]
[384307477,1757330470198,-172.41028858,0.00013448,2]
[384307478,1757330472508,-156.603064,0.00013448,2]
[384307479,1757330474185,-193.92042082,0.00013448,2]
[384307480,1757330477612,-258.46487411,0.00013448,2]
[384307481,1757330479942,-579.02510419,0.00013448,2]
[384307482,1757330483499,-228.42226009,0.00013448,2]
[384307483,1757330486384,-215.72466774,0.00013448,2]
[384307484,1757330487901,-168.0,0.00013448,2]
[384307485,1757330490891,-152.0,0.00013448,2]
[384307486,1757330492939,-203.9665338,0.00013448,2]
[384307487,1757330495838,-203.4359139,0.00013445,2]
[384307488,1757330495861,-344.0515628,0.00013448,2]
[384307489,1757330502750,-178.77,0.00013448,2]
[384307490,1757330503244,-9437.27674206,0.00013448,2]
[384307491,1757330503373,-10000.01,0.00013448,2]
[384307492,1757330503489,-10000.01,0.00013448,2]
[384307493,1757330503613,-10000.01,0.00013448,2]
[384307494,1757330503792,-10000.01,0.00013448,2]
[384307495,1757330503920,-10000.01,0.00013448,2]
[384307496,1757330504083,-10000.01,0.00013448,2]
[384307497,1757330504203,-10000.01,0.00013448,2]
[384307498,1757330504346,-250.44953104,0.00013448,2]
[384307499,1757330504377,-10000.01,0.00013448,2]
[384307500,1757330504527,-10000.01,0.00013448,2]
[384307501,1757330504645,-10000.01,0.00013448,2]
[384307502,1757330504753,-10000.01,0.00013448,2]
[384307503,1757330504900,-10000.01,0.00013448,2]
[384307504,1757330505032,-10000.01,0.00013448,2]
[384307505,1757330505169,-10000.01,0.00013448,2]
[384307506,1757330506109,-390.73285985,0.00013448,2]
[384307507,1757330509677,-239.67956557,0.00013448,2]
[384307508,1757330513123,-174.04407935,0.00013448,2]
[384307509,1757330514815,-174.52933641,0.00013448,2]
[384307510,1757330518563,-251.74378276,0.00013448,2]
[384307511,1757330520842,-365.90011165,0.00013448,2]
[384307512,1757330525275,-249.60110062,0.00013447,2]
[384307513,1757330527133,-50.39889938,0.00013447,2]
[384307514,1757330527158,-232.29028111,0.00013448,2]
[384307515,1757330528704,510.48,0.00012329,2]
[384307516,1757330529082,-1067.83144066,0.00013448,2]
[384307517,1757330531039,9489.53,0.00013313,2]
[384307518,1757330531064,9507.71732724,0.00013313,2]
[384307519,1757330532794,-204.97495522,0.00013447,2]
[384307520,1757330535094,-295.02504478,0.00013447,2]
[384307521,1757330535118,-227.00801504,0.00013447,2]
[384307522,1757330536737,-167.33877011,0.00013447,2]
[384307523,1757330536762,-100.1013031,0.00013447,2]
[384307524,1757330538343,-167.3945075,0.00013447,2]
[384307525,1757330539334,492.29267276,0.00013312,2]
[384307526,1757330539357,362.7357062,0.00013312,2]
[384307527,1757330540310,-178.88526289,0.00013447,2]
[384307528,1757330541897,-53.61892651,0.00013447,2]
[384307529,1757330541921,-330.94100028,0.00013447,2]
[384307530,1757330546411,-169.05899972,0.00013447,2]
[384307531,1757330546433,-41.88498365,0.00013447,2]
[384307532,1757330549326,-167.3945075,0.00013447,2]
[384307533,1757330552159,-245.71661977,0.00013447,2]
[384307534,1757330556583,-45.00388908,0.00013447,2]
[384307535,1757330556606,-124.42896236,0.00013447,2]
[384307536,1757330560150,-375.57103764,0.00013447,2]
[384307537,1757330560172,-17.01750377,0.00013447,2]
[384307538,1757330562001,-438.43093488,0.00013447,2]
[384307539,1757330564977,-44.55156135,0.00013447,2]
[384307540,1757330565000,-152.64748118,0.00013447,2]
[384307541,1757330567210,-228.50869703,0.00013447,2]
[384307542,1757330571305,-118.84382179,0.00013447,2]
[384307543,1757330571328,-69.38454467,0.00013447,2]
[384307544,1757330572177,204.03750631,0.00013348,2]
[384307545,1757330575645,-300.0,0.00013447,2]
[384307546,1757330577963,-130.61545533,0.00013447,2]
[384307547,1757330577989,-128.69633117,0.00013447,2]
[384307548,1757330581591,-318.65320456,0.00013447,2]
[384307549,1757330585052,-202.95413605,0.00013446,2]
[384307550,1757330589697,-97.04586395,0.00013446,2]
[384307551,1757330589721,-52.65046427,0.00013447,2]
[384307552,1757330589745,-150.30367178,0.00013447,2]
[384307553,1757330591239,-519.90564708,0.00013447,2]
[384307554,1757330596936,-234.41708817,0.00013447,2]
[384307555,1757330596959,-63.15298007,0.00013447,2]
[384307556,1757330598572,-242.45773546,0.00013447,2]
[384307557,1757330598595,-20.27797244,0.00013447,2]
[384307558,1757330600887,-200.0,0.00013447,2]
[384307559,1757330602445,-160.20889606,0.00013447,2]
[384307560,1757330604826,-119.5131315,0.00013447,2]
[384307561,1757330604848,-131.51862477,0.00013447,2]
[384307562,1757330606979,-329.26859235,0.00013447,2]
[384307563,1757330610624,-39.21278288,0.00013447,2]
[384307564,1757330610646,-133.07904464,0.00013447,2]
[384307565,1757330612473,-339.74660172,0.00013447,2]
[384307566,1757330614849,-27.17435364,0.00013447,2]
[384307567,1757330614875,-173.17185542,0.00013447,2]
[384307568,1757330616623,-252.324414,0.00013447,2]
[384307571,1757330680607,162.89081129,0.00013347,2]
[384307575,1757330817298,213.0,0.0002,30]
[384307577,1757330915446,9270.3459762,0.00013,2]
[384307578,1757330915468,10000.01,0.00013,2]
[384307579,1757330915491,10000.01,0.00013,2]
[384307580,1757330915512,10000.01,0.00013,2]
[384307581,1757330915533,10000.01,0.00013,2]
[384307582,1757330915555,9407.9500261,0.00013,2]
[384307588,1757331002750,269.0,0.00025,30]
[384307589,1757331007948,1200.0,0.00013444,2]
[384307598,1757331032655,-1001.01028249,0.00013445,2]
[384307599,1757331032665,-1200.0,0.00013445,2]
[384307600,1757331032675,-300.0,0.00013445,2]
[384307601,1757331032684,-300.0,0.00013445,2]
[384307602,1757331032693,-300.0,0.00013445,2]
[384307603,1757331032703,-300.0,0.00013445,2]
[384307604,1757331032712,-300.0,0.00013445,2]
[384307606,1757331032854,-74.50373058,0.00013447,2]
[384307607,1757331032865,-500.0,0.00013447,2]
[384307608,1757331032875,-500.0,0.00013447,2]
[384307609,1757331032885,-290.0,0.00013447,2]
[384307610,1757331032895,-500.0,0.00013447,2]
[384307611,1757331032904,-605.72929243,0.00013447,2]
[384307612,1757331032915,-500.0,0.00013447,2]
[384307613,1757331032925,-500.0,0.00013447,2]
[384307614,1757331032934,-500.0,0.00013447,2]
[384307615,1757331032944,-500.0,0.00013447,2]
[384307616,1757331032953,-500.0,0.00013447,2]
[384307617,1757331032963,-500.0,0.00013447,2]
[384307618,1757331032973,-548.04111016,0.00013447,2]
[384307619,1757331032982,-500.0,0.00013447,2]
[384307620,1757331032992,-500.0,0.00013447,2]
[384307621,1757331033002,-500.0,0.00013447,2]
[384307622,1757331033011,-500.0,0.00013447,2]
[384307623,1757331033021,-500.0,0.00013447,2]
[384307624,1757331033031,-500.0,0.00013447,2]
[384307625,1757331033040,-500.0,0.00013447,2]
[384307626,1757331033050,-500.0,0.00013447,2]
[384307627,1757331033060,-597.8030676,0.00013447,2]
[384307628,1757331033069,-353.3129028,0.00013447,2]
[384307629,1757331033078,-500.0,0.00013447,2]
[384307630,1757331033088,-190.56386347,0.00013447,2]
[384307631,1757331033098,-372.74516197,0.00013447,2]
[384307632,1757331033108,-11310.22435573,0.00013448,2]
[384307633,1757331033120,-50000.112652,0.00013448,2]
[384307639,1757331038453,-6510.86675222,0.00013448,2]
[384307640,1757331038468,-12987.84209343,0.00013448,2]
[384307641,1757331038480,-3298.31000518,0.00013448,2]
[384307642,1757331038490,-1744.16304173,0.00013448,2]
[384307643,1757331038499,-1001.01028245,0.00013483,2]
[384307644,1757331038509,-379.9161821,0.000135,2]
[384307645,1757331038518,-514.08039855,0.000135,2]
[384307726,1757331042850,-99.82474176,0.000135,2]
[384307727,1757331042862,-1575.00267035,0.000135,2]
[384307732,1757331043545,-284.94200996,0.000135,2]
[384307733,1757331043655,-85479.86291298,0.000135,2]
[384307734,1757331043665,-1001.01028245,0.00013522,2]
[384307735,1757331043675,-9329.37029397,0.00013545,2]
[384307736,1757331043684,-1982.1213931,0.00013547,2]
[384307737,1757331043694,-31092.7122318,0.00013548,2]
[384307738,1757331043704,-1001.01028245,0.0001356,2]
[384307739,1757331043713,-1001.01028245,0.00013598,2]
[384307740,1757331043722,-33016.83396314,0.00013598,2]
[384307741,1757331043732,-50000.0,0.00013598,2]
[384307742,1757331043742,-19363.40046272,0.00013695,2]
[384307743,1757331043753,-480.0,0.00013698,2]
[384307744,1757331043763,-480.0,0.00013698,2]
[384307745,1757331043773,-480.0,0.00013698,2]
[384307746,1757331043783,-480.64569854,0.00013698,2]
[384307747,1757331043792,-480.0,0.00013698,2]
[384307748,1757331043801,-480.0,0.00013698,2]
[384307749,1757331043811,-480.99065468,0.00013698,2]
[384307750,1757331043821,-480.0,0.00013698,2]
[384307751,1757331043830,-480.0,0.00013698,2]
[384307752,1757331043840,-480.0,0.00013698,2]
[384307753,1757331043849,-480.0,0.00013698,2]
[384307754,1757331043859,-480.0,0.00013698,2]
[384307755,1757331043868,-480.0,0.00013698,2]
[384307756,1757331043878,-485.43343239,0.00013698,2]
[384307757,1757331043888,-480.0,0.00013698,2]
[384307758,1757331043898,-483.73834228,0.00013698,2]
[384307759,1757331043908,-480.0,0.00013698,2]
[384307760,1757331043917,-269.08407509,0.00013698,2]
[384307761,1757331043927,-473.76286339,0.00013698,2]
[384307762,1757331043936,-480.0,0.00013698,2]
[384307763,1757331043946,-480.0,0.00013698,2]
[384307764,1757331043955,-480.0,0.00013698,2]
[384307765,1757331043965,-480.0,0.00013698,2]
[384307766,1757331043976,-480.0,0.00013698,2]
[384307767,1757331043986,-482.02964089,0.00013698,2]
[384307768,1757331043996,-480.0,0.00013698,2]
[384307769,1757331044005,-483.35269777,0.00013698,2]
[384307770,1757331044014,-480.0,0.00013698,2]
[384307771,1757331044023,-483.38832591,0.00013698,2]
[384307772,1757331044032,-485.03556277,0.00013698,2]
[384307773,1757331044042,-482.64554537,0.00013698,2]
[384307774,1757331044051,-480.0,0.00013698,2]
[384307775,1757331044060,-485.47043357,0.00013698,2]
[384307776,1757331044070,-480.0,0.00013698,2]
[384307777,1757331044079,-483.65799948,0.00013698,2]
[384307778,1757331044089,-480.0,0.00013698,2]
[384307779,1757331044098,-480.0,0.00013698,2]
[384307780,1757331044108,-480.0,0.00013698,2]
[384307781,1757331044118,-482.82749444,0.00013698,2]
[384307782,1757331044127,-480.0,0.00013698,2]
[384307783,1757331044136,-480.0,0.00013698,2]
[384307784,1757331044146,-280.36022268,0.00013698,2]
[384307785,1757331044155,-281.06754167,0.00013698,2]
[384307786,1757331044164,-484.54104728,0.00013698,2]
[384307787,1757331044173,-480.0,0.00013698,2]
[384307788,1757331044183,-481.70784131,0.00013698,2]